fUSD/lending_fUSD_20250823
["ID","MTS","AMOUNT","RATE_DAILY","PERIOD"]
[380944514,1755909145206,-622.81,0.00015616,2]
[380944515,1755909145217,-1245.75,0.00015616,2]
[380944516,1755909145227,-516.75,0.00015616,2]
[380944517,1755909145238,-757.12,0.00015616,2]
[380944518,1755909145249,-468.67,0.00015616,2]
[380944519,1755909145259,-400.0,0.00015616,2]
[380944520,1755909145269,-655.72,0.00015616,2]
[380944521,1755909145281,-1549.38,0.00015616,2]
[380944522,1755909145291,-490.46,0.00015616,2]
[380944523,1755909145301,-1114.83,0.00015616,2]
[380944524,1755909145311,-402.98,0.00015616,2]
[380944525,1755909145322,-400.0,0.00015616,2]
[380944526,1755909145332,-1455.01,0.00015616,2]
[380944527,1755909145342,-400.0,0.00015616,2]
[380944528,1755909145351,-400.0,0.00015616,2]
[380944529,1755909145361,-500.59,0.00015616,2]
[380944530,1755909145371,-553.89,0.00015616,2]
[380944531,1755909145382,-958.06,0.00015616,2]
[380944532,1755909145392,-400.0,0.00015616,2]
[380944533,1755909145402,-400.0,0.00015616,2]
[380944534,1755909145413,-1000.0,0.00015616,2]
[380944535,1755909145424,-400.0,0.00015616,2]
[380944536,1755909145434,-765.26,0.00015616,2]
[380944537,1755909145444,-181.06,0.00015616,2]
[380944538,1755909145454,-684.36,0.00015616,2]
[380944539,1755909145464,-1609.25,0.00015616,2]
[380944540,1755909145474,-509.39,0.00015616,2]
[380944541,1755909145484,-748.86,0.00015616,2]
[380944542,1755909145494,-794.68,0.00015616,2]
[380944543,1755909145505,-632.68,0.00015616,2]
[380944544,1755909145515,-400.0,0.00015616,2]
[380944545,1755909145525,-654.86,0.00015616,2]
[380944546,1755909145535,-400.0,0.00015616,2]
[380944547,1755909145545,-1326.0,0.00015616,2]
[380944548,1755909145556,-1273.55,0.00015616,2]
[380944549,1755909145566,-754.86,0.00015616,2]
[380944550,1755909145577,-535.34,0.00015616,2]
[380944551,1755909145587,-1058.52,0.00015616,2]
[380944552,1755909145598,-584.52,0.00015616,2]
[380944553,1755909145610,-542.29,0.00015616,2]
[380944554,1755909145621,-400.0,0.00015616,2]
[380944555,1755909145631,-400.0,0.00015616,2]
[380944556,1755909145642,-619.27,0.00015616,2]
[380944557,1755909145652,-1513.64,0.00015616,2]
[380944558,1755909145663,-559.29,0.00015616,2]
[380944559,1755909145673,-634.92,0.00015616,2]
[380944560,1755909145684,-675.54,0.00015616,2]
[380944561,1755909145694,-1090.13,0.00015616,2]
[380944562,1755909145704,-440.2,0.00015616,2]
[380944563,1755909145716,-484.32,0.00015616,2]
[380944564,1755909145726,-250.0,0.00015616,2]
[380944565,1755909145737,-1041.84,0.00015616,2]
[380944566,1755909145747,-400.0,0.00015616,2]
[380944567,1755909145757,-1076.24,0.00015616,2]
[380944568,1755909145767,-1111.63,0.00015616,2]
[380944569,1755909145778,-1066.21,0.00015616,2]
[380944570,1755909145788,-1929.62,0.00015616,2]
[380944571,1755909145798,-558.61,0.00015616,2]
[380944572,1755909145808,-543.28,0.00015616,2]
[380944573,1755909145818,-409.53,0.00015616,2]
[380944574,1755909145828,-394.20391133,0.00015616,2]
[380944575,1755909145839,-453.31,0.00015616,2]
[380944576,1755909145850,-639.7,0.00015616,2]
[380944577,1755909145860,-656.72,0.00015616,2]
[380944578,1755909145870,-400.0,0.00015616,2]
[380944579,1755909145880,-630.26,0.00015616,2]
[380944580,1755909145890,-691.77,0.00015616,2]
[380944581,1755909145900,-984.96,0.00015616,2]
[380944582,1755909145909,-854.82,0.00015616,2]
[380944583,1755909145919,-484.18,0.00015616,2]
[380944584,1755909145928,-400.0,0.00015616,2]
[380944585,1755909145938,-400.0,0.00015616,2]
[380944586,1755909145948,-900.69,0.00015616,2]
[380944587,1755909145958,-849.76,0.00015616,2]
[380944588,1755909145968,-440.43,0.00015616,2]
[380944589,1755909145978,-463.91,0.00015616,2]
[380944590,1755909145989,-548.44,0.00015616,2]
[380944591,1755909145998,-734.69,0.00015616,2]
[380944592,1755909146008,-633.7,0.00015616,2]
[380944593,1755909146018,-400.0,0.00015616,2]
[380944594,1755909146030,-1283.05,0.00015616,2]
[380944595,1755909146040,-774.74,0.00015616,2]
[380944596,1755909146050,-554.16,0.00015616,2]
[380944597,1755909146061,-400.0,0.00015616,2]
[380944598,1755909146071,-923.64,0.00015616,2]
[380944599,1755909146081,-684.33,0.00015616,2]
[380944600,1755909146091,-831.09,0.00015616,2]
[380944601,1755909146100,-724.59,0.00015616,2]
[380944602,1755909146110,-515.8,0.00015616,2]
[380944603,1755909146120,-1301.68,0.00015616,2]
[380944604,1755909146129,-618.62,0.00015616,2]
[380944605,1755909146139,-400.0,0.00015616,2]
[380944606,1755909146148,-1002.03,0.00015616,2]
[380944607,1755909146158,-400.0,0.00015616,2]
[380944608,1755909146168,-400.0,0.00015616,2]
[380944609,1755909146177,-400.0,0.00015616,2]
[380944610,1755909146187,-940.39,0.00015616,2]
[380944611,1755909146196,-400.0,0.00015616,2]
[380944612,1755909146208,-400.0,0.00015616,2]
[380944613,1755909146218,-400.0,0.00015616,2]
[380944614,1755909146228,-933.3,0.00015616,2]
[380944615,1755909146238,-682.02,0.00015616,2]
[380944616,1755909146248,-466.33,0.00015616,2]
[380944617,1755909146258,-400.0,0.00015616,2]
[380944618,1755909146268,-789.37,0.00015616,2]
[380944619,1755909146280,-535.1,0.00015616,2]
[380944620,1755909146289,-1243.51,0.00015616,2]
[380944621,1755909146299,-412.28,0.00015616,2]
[380944622,1755909146309,-828.94,0.00015616,2]
[380944623,1755909146321,-581.93,0.00015616,2]
[380944624,1755909146331,-712.67,0.00015616,2]
[380944625,1755909146341,-400.0,0.00015616,2]
[380944626,1755909146350,-779.34,0.00015616,2]
[380944627,1755909146360,-400.0,0.00015616,2]
[380944628,1755909146371,-495.96,0.00015616,2]
[380944629,1755909146380,-628.81,0.00015616,2]
[380944630,1755909146390,-636.7,0.00015616,2]
[380944631,1755909146400,-2007.17,0.00015616,2]
[380944632,1755909146410,-941.75,0.00015616,2]
[380944633,1755909146420,-434.04672002,0.00015616,2]
[380944634,1755909146430,-971.09,0.00015616,2]
[380944635,1755909146440,-400.0,0.00015616,2]
[380944636,1755909146451,-1107.09,0.00015616,2]
[380944637,1755909146460,-566.3,0.00015616,2]
[380944638,1755909146470,-864.25,0.00015616,2]
[380944639,1755909146480,-400.0,0.00015616,2]
[380944640,1755909146490,-585.02,0.00015616,2]
[380944641,1755909146500,-1099.08,0.00015616,2]
[380944642,1755909146509,-400.0,0.00015616,2]
[380944643,1755909146519,-400.0,0.00015616,2]
[380944644,1755909146530,-676.57,0.00015616,2]
[380944645,1755909146539,-400.0,0.00015616,2]
[380944646,1755909146548,-400.0,0.00015616,2]
[380944647,1755909146557,-749.92,0.00015616,2]
[380944648,1755909146567,-634.31,0.00015616,2]
[380944649,1755909146576,-894.75,0.00015616,2]
[380944650,1755909146587,-476.98,0.00015616,2]
[380944651,1755909146596,-455.35,0.00015616,2]
[380944652,1755909146605,-1015.51,0.00015616,2]
[380944653,1755909146615,-560.43,0.00015616,2]
[380944654,1755909146626,-667.33,0.00015616,2]
[380944655,1755909146635,-556.68,0.00015616,2]
[380944656,1755909146645,-634.38,0.00015616,2]
[380944657,1755909146655,-440.79,0.00015616,2]
[380944658,1755909146665,-769.3,0.00015616,2]
[380944659,1755909146675,-400.0,0.00015616,2]
[380944660,1755909146684,-1376.17,0.00015616,2]
[380944661,1755909146694,-811.19,0.00015616,2]
[380944662,1755909146703,-661.11,0.00015616,2]
[380944663,1755909146712,-400.0,0.00015616,2]
[380944664,1755909146722,-531.99,0.00015616,2]
[380944665,1755909146731,-421.79,0.00015616,2]
[380944666,1755909146741,-913.58,0.00015616,2]
[380944667,1755909146751,-657.18,0.00015616,2]
[380944668,1755909146760,-984.19,0.00015616,2]
[380944669,1755909146770,-490.26,0.00015616,2]
[380944670,1755909146780,-641.16,0.00015616,2]
[380944671,1755909146789,-472.42,0.00015616,2]
[380944672,1755909146799,-1002.95,0.00015616,2]
[380944673,1755909146810,-884.67,0.00015616,2]
[380944674,1755909146820,-400.0,0.00015616,2]
[380944675,1755909146831,-400.0,0.00015616,2]
[380944676,1755909146841,-400.0,0.00015616,2]
[380944677,1755909146851,-436.7,0.00015616,2]
[380944678,1755909146865,-2000.0,0.00015616,2]
[380944679,1755909146875,-2000.0,0.00015616,2]
[380944680,1755909146885,-1780.90041817,0.00015616,2]
[380944681,1755909146895,-1696.55972482,0.00015616,2]
[380944682,1755909146905,-2000.0,0.00015616,2]
[380944683,1755909146916,-2000.0,0.00015616,2]
[380944684,1755909146925,-1666.19984472,0.00015616,2]
[380944685,1755909146935,-2000.0,0.00015616,2]
[380944686,1755909146945,-252.31360437,0.00015616,2]
[380944687,1755909146955,-2000.0,0.00015616,2]
[380944688,1755909146965,-2000.0,0.00015616,2]
[380944689,1755909146975,-2000.0,0.00015616,2]
[380944690,1755909146985,-1350.15145703,0.00015616,2]
[380944691,1755909146995,-174.0,0.0001564,7]
[380944692,1755909147005,-2648.59,0.00015753,2]
[380944693,1755909147014,-400.0,0.00015789,2]
[380944694,1755909147024,-1252.0,0.00015816,2]
[380944695,1755909147034,-799.08,0.00015834,2]
[380944696,1755909147044,-799.08,0.00015834,2]
[380944697,1755909147054,-549.67,0.00015872,2]
[380944698,1755909147063,-417.34,0.0001588,2]
[380944699,1755909147072,-166.02,0.0001588,2]
[380944700,1755909147082,-1736.26,0.00015884,2]
[380944701,1755909147092,-356.62,0.00015884,2]
[380944702,1755909147103,-150.0,0.00015889,2]
[380944703,1755909147113,-729.0,0.0001589,2]
[380944704,1755909147122,-183.0,0.0001589,2]
[380944705,1755909147132,-550.0,0.0001589,2]
[380944706,1755909147142,-765.0,0.0001589,2]
[380944707,1755909147151,-500.0,0.0001589,2]
[380944708,1755909147161,-500.0,0.0001589,2]
[380944709,1755909147170,-400.0,0.0001589,2]
[380944710,1755909147180,-1471.92,0.0001589,2]
[380944711,1755909147189,-400.0,0.0001589,2]
[380944712,1755909147199,-400.0,0.0001589,2]
[380944713,1755909147212,-612.02,0.0001589,2]
[380944714,1755909147222,-603.48,0.0001589,2]
[380944715,1755909147232,-448.19,0.0001589,2]
[380944716,1755909147242,-400.0,0.0001589,2]
[380944717,1755909147251,-400.0,0.0001589,2]
[380944718,1755909147262,-153.492172,0.0001589,2]
[380944719,1755909147272,-431.57,0.0001589,2]
[380944720,1755909147284,-400.0,0.0001589,2]
[380944721,1755909147293,-400.0,0.0001589,2]
[380944722,1755909147304,-434.66,0.0001589,2]
[380944723,1755909147314,-649.59,0.0001589,2]
[380944724,1755909147324,-681.46,0.0001589,2]
[380944725,1755909147333,-472.35,0.0001589,2]
[380944726,1755909147343,-400.0,0.0001589,2]
[380944727,1755909147352,-400.0,0.0001589,2]
[380944728,1755909147362,-409.04,0.0001589,2]
[380944729,1755909147371,-235.795947,0.0001589,2]
[380944730,1755909147381,-546.13,0.0001589,2]
[380944731,1755909147390,-534.48,0.0001589,2]
[380944732,1755909147399,-635.82,0.0001589,2]
[380944733,1755909147409,-476.99,0.0001589,2]
[380944734,1755909147419,-400.0,0.0001589,2]
[380944735,1755909147428,-400.0,0.0001589,2]
[380944736,1755909147437,-322.0046332,0.0001589,2]
[380944737,1755909147447,-400.0,0.0001589,2]
[380944738,1755909147456,-507.78,0.0001589,2]
[380944739,1755909147465,-225.34258167,0.0001589,2]
[380944740,1755909147475,-744.95,0.0001589,2]
[380944741,1755909147485,-590.74,0.0001589,2]
[380944742,1755909147494,-358.85,0.0001589,2]
[380944743,1755909147503,-575.25,0.0001589,2]
[380944744,1755909147513,-400.0,0.0001589,2]
[380944745,1755909147522,-990.54657,0.0001589,2]
[380944746,1755909147628,-400.0,0.0001589,2]
[380944747,1755909147637,-400.0,0.0001589,2]
[380944748,1755909147647,-400.0,0.0001589,2]
[380944749,1755909147656,-400.0,0.0001589,2]
[380944750,1755909147665,-400.0,0.0001589,2]
[380944751,1755909147674,-400.0,0.0001589,2]
[380944752,1755909147683,-400.0,0.0001589,2]
[380944753,1755909147693,-410.44,0.0001589,2]
[380944754,1755909147702,-477.98,0.0001589,2]
[380944755,1755909147711,-692.3,0.0001589,2]
[380944756,1755909147720,-600.48,0.0001589,2]
[380944757,1755909147729,-400.0,0.0001589,2]
[380944758,1755909147738,-402.6,0.0001589,2]
[380944759,1755909147746,-400.0,0.0001589,2]
[380944760,1755909147755,-400.0,0.0001589,2]
[380944761,1755909147763,-407.62988718,0.0001589,2]
[380944762,1755909147772,-685.13,0.0001589,2]
[380944763,1755909147782,-400.0,0.0001589,2]
[380944764,1755909147791,-400.0,0.0001589,2]
[380944765,1755909147800,-400.0,0.0001589,2]
[380944766,1755909147809,-400.0,0.0001589,2]
[380944767,1755909147818,-400.0,0.0001589,2]
[380944768,1755909147828,-580.21,0.0001589,2]
[380944769,1755909147837,-400.0,0.0001589,2]
[380944770,1755909147847,-400.0,0.0001589,2]
[380944771,1755909147856,-628.41,0.0001589,2]
[380944772,1755909147865,-699.23,0.0001589,2]
[380944773,1755909147874,-400.0,0.0001589,2]
[380944774,1755909147884,-469.22,0.0001589,2]
[380944775,1755909147893,-440.08,0.0001589,2]
[380944776,1755909147903,-622.9,0.0001589,2]
[380944777,1755909147912,-1031.94,0.0001589,2]
[380944778,1755909147921,-740.51,0.0001589,2]
[380944779,1755909147930,-400.0,0.0001589,2]
[380944780,1755909147939,-419.57,0.0001589,2]
[380944781,1755909147950,-511.83,0.0001589,2]
[380944782,1755909147960,-620.5,0.0001589,2]
[380944783,1755909147969,-608.92,0.0001589,2]
[380944784,1755909147979,-738.22,0.0001589,2]
[380944785,1755909147988,-400.0,0.0001589,2]
[380944786,1755909147997,-699.72,0.0001589,2]
[380944787,1755909148006,-400.0,0.0001589,2]
[380944788,1755909148015,-402.65,0.0001589,2]
[380944789,1755909148024,-566.41,0.0001589,2]
[380944790,1755909148034,-692.55,0.0001589,2]
[380944791,1755909148043,-400.0,0.0001589,2]
[380944792,1755909148051,-400.0,0.0001589,2]
[380944793,1755909148060,-400.0,0.0001589,2]
[380944794,1755909148070,-681.21,0.0001589,2]
[380944795,1755909148079,-400.0,0.0001589,2]
[380944796,1755909148088,-461.28,0.0001589,2]
[380944797,1755909148097,-566.05,0.0001589,2]
[380944798,1755909148106,-414.87,0.0001589,2]
[380944799,1755909148115,-398.4882457,0.0001589,2]
[380944800,1755909148124,-400.0,0.0001589,2]
[380944801,1755909148133,-475.17,0.0001589,2]
[380944802,1755909148143,-489.89,0.0001589,2]
[380944803,1755909148152,-411.77,0.0001589,2]
[380944804,1755909148169,-400.0,0.0001589,2]
[380944805,1755909148187,-400.0,0.0001589,2]
[380944806,1755909148196,-410.23,0.0001589,2]
[380944807,1755909148207,-400.0,0.0001589,2]
[380944808,1755909148217,-400.0,0.0001589,2]
[380944809,1755909148226,-400.0,0.0001589,2]
[380944810,1755909148235,-400.0,0.0001589,2]
[380944811,1755909148245,-639.2,0.0001589,2]
[380944812,1755909148255,-477.58,0.0001589,2]
[380944813,1755909148264,-972.5,0.0001589,2]
[380944814,1755909148274,-414.05,0.0001589,2]
[380944815,1755909148286,-467.39,0.0001589,2]
[380944816,1755909148296,-400.0,0.0001589,2]
[380944817,1755909148305,-400.0,0.0001589,2]
[380944818,1755909148315,-667.14,0.0001589,2]
[380944819,1755909148324,-400.0,0.0001589,2]
[380944820,1755909148334,-532.87,0.0001589,2]
[380944821,1755909148344,-442.87,0.0001589,2]
[380944822,1755909148353,-788.52,0.0001589,2]
[380944823,1755909148362,-400.0,0.0001589,2]
[380944824,1755909148372,-413.86,0.0001589,2]
[380944825,1755909148381,-528.62,0.0001589,2]
[380944826,1755909148391,-327.20464046,0.0001589,2]
[380944827,1755909148400,-400.0,0.0001589,2]
[380944828,1755909148409,-858.81,0.0001589,2]
[380944829,1755909148418,-400.0,0.0001589,2]
[380944830,1755909148427,-962.13,0.0001589,2]
[380944831,1755909148437,-640.39,0.0001589,2]
[380944832,1755909148447,-400.0,0.0001589,2]
[380944833,1755909148456,-400.0,0.0001589,2]
[380944834,1755909148466,-400.0,0.0001589,2]
[380944835,1755909148475,-495.39,0.0001589,2]
[380944836,1755909148484,-431.15,0.0001589,2]
[380944837,1755909148493,-412.84,0.0001589,2]
[380944838,1755909148503,-469.42,0.0001589,2]
[380944839,1755909148512,-400.0,0.0001589,2]
[380944840,1755909148521,-1194.0,0.0001589,2]
[380944841,1755909148532,-400.0,0.0001589,2]
[380944842,1755909148541,-400.0,0.0001589,2]
[380944843,1755909148551,-719.77,0.0001589,2]
[380944844,1755909148560,-1072.22,0.0001589,2]
[380944845,1755909148569,-571.55,0.0001589,2]
[380944846,1755909148578,-402.59,0.0001589,2]
[380944847,1755909148587,-511.73,0.0001589,2]
[380944848,1755909148596,-400.0,0.0001589,2]
[380944849,1755909148605,-400.0,0.0001589,2]
[380944850,1755909148615,-796.82,0.0001589,2]
[380944851,1755909148624,-839.94,0.0001589,2]
[380944852,1755909148633,-697.65,0.0001589,2]
[380944853,1755909148642,-575.9,0.0001589,2]
[380944854,1755909148651,-486.14,0.0001589,2]
[380944855,1755909148661,-499.82,0.0001589,2]
[380944856,1755909148670,-400.0,0.0001589,2]
[380944857,1755909148680,-400.0,0.0001589,2]
[380944858,1755909148689,-400.0,0.0001589,2]
[380944859,1755909148698,-400.0,0.0001589,2]
[380944860,1755909148708,-400.0,0.0001589,2]
[380944861,1755909148717,-900.25,0.0001589,2]
[380944862,1755909148727,-814.32,0.0001589,2]
[380944863,1755909148736,-442.56,0.0001589,2]
[380944864,1755909148745,-529.89,0.0001589,2]
[380944865,1755909148756,-400.0,0.0001589,2]
[380944866,1755909148766,-400.0,0.0001589,2]
[380944867,1755909148777,-400.0,0.0001589,2]
[380944868,1755909148787,-400.0,0.0001589,2]
[380944869,1755909148796,-1017.87,0.0001589,2]
[380944870,1755909148806,-400.0,0.0001589,2]
[380944871,1755909148815,-657.79,0.0001589,2]
[380944872,1755909148823,-400.0,0.0001589,2]
[380944873,1755909148833,-638.0,0.0001589,2]
[380944874,1755909148842,-400.0,0.0001589,2]
[380944875,1755909148852,-410.77,0.0001589,2]
[380944876,1755909148861,-802.21,0.0001589,2]
[380944877,1755909148870,-400.0,0.0001589,2]
[380944878,1755909148879,-400.0,0.0001589,2]
[380944879,1755909148888,-400.0,0.0001589,2]
[380944880,1755909148897,-574.55,0.0001589,2]
[380944881,1755909148906,-400.0,0.0001589,2]
[380944882,1755909148915,-400.0,0.0001589,2]
[380944883,1755909148925,-601.94,0.0001589,2]
[380944884,1755909148934,-548.25,0.0001589,2]
[380944885,1755909148944,-733.18,0.0001589,2]
[380944886,1755909148954,-463.43,0.0001589,2]
[380944887,1755909148963,-614.24,0.0001589,2]
[380944888,1755909148973,-613.84,0.0001589,2]
[380944889,1755909148982,-689.7,0.0001589,2]
[380944890,1755909148992,-466.72,0.0001589,2]
[380944891,1755909149005,-400.0,0.0001589,2]
[380944892,1755909149015,-400.0,0.0001589,2]
[380944893,1755909149025,-461.07,0.0001589,2]
[380944894,1755909149035,-416.42,0.0001589,2]
[380944895,1755909149044,-1025.78,0.0001589,2]
[380944896,1755909149053,-401.75,0.0001589,2]
[380944897,1755909149063,-834.47,0.0001589,2]
[380944898,1755909149072,-614.04,0.0001589,2]
[380944899,1755909149082,-776.97,0.0001589,2]
[380944900,1755909149091,-472.6,0.0001589,2]
[380944901,1755909149101,-602.14,0.0001589,2]
[380944902,1755909149110,-417.62,0.0001589,2]
[380944903,1755909149120,-400.0,0.0001589,2]
[380944904,1755909149129,-400.0,0.0001589,2]
[380944905,1755909149140,-854.31,0.0001589,2]
[380944906,1755909149150,-400.0,0.0001589,2]
[380944907,1755909149160,-400.0,0.0001589,2]
[380944908,1755909149170,-572.31,0.0001589,2]
[380944909,1755909149179,-419.61,0.0001589,2]
[380944910,1755909149189,-400.0,0.0001589,2]
[380944911,1755909149199,-585.48,0.0001589,2]
[380944912,1755909149212,-488.58,0.0001589,2]
[380944913,1755909149221,-713.34,0.0001589,2]
[380944914,1755909149231,-400.0,0.0001589,2]
[380944915,1755909149242,-869.4,0.0001589,2]
[380944916,1755909149252,-756.22,0.0001589,2]
[380944917,1755909149263,-400.0,0.0001589,2]
[380944918,1755909149274,-494.08,0.0001589,2]
[380944919,1755909149287,-400.0,0.0001589,2]
[380944920,1755909149297,-613.84,0.0001589,2]
[380944921,1755909149307,-400.0,0.0001589,2]
[380944922,1755909149316,-493.02,0.0001589,2]
[380944923,1755909149327,-574.35,0.0001589,2]
[380944924,1755909149337,-993.54,0.0001589,2]
[380944925,1755909149346,-665.46,0.0001589,2]
[380944926,1755909149356,-518.26,0.0001589,2]
[380944927,1755909149366,-587.28,0.0001589,2]
[380944928,1755909149376,-735.95,0.0001589,2]
[380944929,1755909149386,-400.0,0.0001589,2]
[380944930,1755909149396,-615.67,0.0001589,2]
[380944931,1755909149406,-506.38,0.0001589,2]
[380944932,1755909149416,-400.0,0.0001589,2]
[380944933,1755909149426,-400.0,0.0001589,2]
[380944934,1755909149435,-448.79,0.0001589,2]
[380944935,1755909149445,-400.0,0.0001589,2]
[380944936,1755909149455,-983.83,0.0001589,2]
[380944937,1755909149465,-442.91,0.0001589,2]
[380944938,1755909149476,-590.43,0.0001589,2]
[380944939,1755909149489,-794.38,0.0001589,2]
[380944940,1755909149501,-400.0,0.0001589,2]
[380944941,1755909149511,-444.08,0.0001589,2]
[380944942,1755909149521,-546.25,0.0001589,2]
[380944943,1755909149531,-529.58,0.0001589,2]
[380944944,1755909149541,-703.24,0.0001589,2]
[380944945,1755909149551,-876.02,0.0001589,2]
[380944946,1755909149561,-849.18,0.0001589,2]
[380944947,1755909149570,-492.86,0.0001589,2]
[380944948,1755909149580,-476.2,0.0001589,2]
[380944949,1755909149589,-788.72,0.0001589,2]
[380944950,1755909149599,-756.77,0.0001589,2]
[380944951,1755909149608,-754.08,0.0001589,2]
[380944952,1755909149618,-815.73,0.0001589,2]
[380944953,1755909149628,-400.0,0.0001589,2]
[380944954,1755909149638,-400.0,0.0001589,2]
[380944955,1755909149647,-420.43731632,0.0001589,2]
[380944956,1755909149657,-400.0,0.0001589,2]
[380944957,1755909149667,-896.11,0.0001589,2]
[380944958,1755909149677,-1011.99,0.0001589,2]
[380944959,1755909149687,-859.21,0.0001589,2]
[380944960,1755909149697,-509.28,0.0001589,2]
[380944961,1755909149707,-640.92,0.0001589,2]
[380944962,1755909149717,-1075.32,0.0001589,2]
[380944963,1755909149728,-400.0,0.0001589,2]
[380944964,1755909149737,-901.15,0.0001589,2]
[380944965,1755909149747,-411.47,0.0001589,2]
[380944966,1755909149757,-400.0,0.0001589,2]
[380944967,1755909149767,-725.33,0.0001589,2]
[380944968,1755909149776,-577.79,0.0001589,2]
[380944969,1755909149786,-421.13,0.0001589,2]
[380944970,1755909149796,-425.58,0.0001589,2]
[380944971,1755909149806,-781.05,0.0001589,2]
[380944972,1755909149816,-606.08,0.0001589,2]
[380944973,1755909149826,-771.47,0.0001589,2]
[380944974,1755909149835,-475.64,0.0001589,2]
[380944975,1755909149845,-632.28,0.0001589,2]
[380944976,1755909149855,-400.0,0.0001589,2]
[380944977,1755909149865,-552.73,0.0001589,2]
[380944978,1755909149875,-702.38,0.0001589,2]
[380944979,1755909149884,-400.0,0.0001589,2]
[380944980,1755909149894,-866.41,0.0001589,2]
[380944981,1755909149904,-758.47,0.0001589,2]
[380944982,1755909149914,-677.52,0.0001589,2]
[380944983,1755909149924,-400.0,0.0001589,2]
[380944984,1755909149933,-400.0,0.0001589,2]
[380944985,1755909149943,-483.75,0.0001589,2]
[380944986,1755909149953,-400.0,0.0001589,2]
[380944987,1755909149963,-620.99,0.0001589,2]
[380944988,1755909149972,-758.84,0.0001589,2]
[380944989,1755909149984,-424.0,0.0001589,2]
[380944990,1755909149994,-779.18,0.0001589,2]
[380944991,1755909150004,-406.15295482,0.0001589,2]
[380944992,1755909150013,-507.28,0.0001589,2]
[380944993,1755909150023,-400.0,0.0001589,2]
[380944994,1755909150034,-987.41,0.0001589,2]
[380944995,1755909150044,-400.0,0.0001589,2]
[380944996,1755909150054,-400.0,0.0001589,2]
[380944997,1755909150064,-706.05,0.0001589,2]
[380944998,1755909150074,-3029.47,0.0001589,2]
[380944999,1755909150084,-841.05,0.0001589,2]
[380945000,1755909150094,-869.31,0.0001589,2]
[380945001,1755909150104,-640.38,0.0001589,2]
[380945002,1755909150113,-400.0,0.0001589,2]
[380945003,1755909150123,-498.91,0.0001589,2]
[380945004,1755909150132,-615.48,0.0001589,2]
[380945005,1755909150142,-400.0,0.0001589,2]
[380945006,1755909150153,-400.0,0.0001589,2]
[380945007,1755909150164,-503.02,0.0001589,2]
[380945008,1755909150174,-445.28,0.0001589,2]
[380945009,1755909150185,-426.86,0.0001589,2]
[380945010,1755909150198,-577.61,0.0001589,2]
[380945011,1755909150215,-450.11,0.0001589,2]
[380945012,1755909150226,-990.96,0.0001589,2]
[380945013,1755909150236,-400.0,0.0001589,2]